bitfinex-derivatives/quotes_ETHF0:USTF0_20240915
["timestamp","ask_amount","ask_price","bid_price","bid_amount"]
[1726443295182,1.09319896,2316.9,2316.7,0.43157]
[1726443295380,3.2078,2317.2,2316.3,3.2078]
[1726443295381,1.09319896,2317.0,2316.3,3.2078]
[1726443295877,1.09319896,2317.0,2316.7,0.43157]
[1726443296085,1.09319896,2316.9,2316.6,0.43159]
[1726443296775,1.09319896,2316.9,2316.3,3.2078]
[1726443296776,1.09319896,2316.9,2316.7,0.43158]
[1726443297080,1.09319896,2316.9,2316.6,0.43159]
[1726443297788,1.09319896,2316.7,2316.4,0.43163]
[1726443298080,1.09319896,2316.7,2316.3,3.2078]
[1726443298081,1.09319896,2316.7,2316.3,3.63945]
[1726443298276,1.09319896,2316.6,2316.3,3.63945]
[1726443298476,1.09319896,2316.6,2316.3,3.2078]
[1726443299079,1.09319896,2316.6,2316.3,3.63944]
[1726443299379,1.09319896,2316.5,2316.3,3.63944]
[1726443299785,1.09319896,2316.5,2316.4,0.43163]
[1726443299988,1.09319896,2316.5,2316.4,4.74843]
[1726443300180,1.63117553,2316.7,2316.6,0.4316]
[1726443300381,1.63117553,2317.0,2316.8,0.43156]
[1726443300578,0.63448358,2316.9,2316.8,0.43156]
[1726443300988,0.63448358,2316.9,2316.8,4.316]
[1726443301484,2.49769614,2316.9,2316.3,3.2078]
[1726443301792,1.64725367,2316.6,2316.1,0.43167]
[1726443301990,2.49763182,2316.5,2316.0,5.6666]
[1726443302181,0.63448358,2316.4,2316.0,6.09831]
[1726443302485,0.63448358,2316.3,2316.0,5.6666]
[1726443302787,3.2078,2316.3,2315.6,3.2078]
[1726443303093,3.2078,2316.3,2315.0,4.149]
[1726443303094,1.64725367,2315.9,2315.5,0.43179]
[1726443303389,1.64725367,2315.9,2315.4,0.43181]
[1726443303390,0.63415835,2315.8,2315.4,0.43181]
[1726443303589,0.63415835,2315.7,2315.4,0.43181]
[1726443303790,4.85505367,2315.9,2315.3,3.2078]
[1726443303987,1.64725367,2315.6,2315.3,3.2078]
[1726443304493,0.6339134,2315.5,2315.3,3.2078]
[1726443304691,0.6339134,2315.4,2315.3,3.2078]
[1726443306093,1.64725367,2315.5,2315.3,3.2078]
[1726443306289,0.63377169,2315.4,2315.3,3.2078]
[1726443306595,1.86330198,2315.6,2315.3,3.2078]
[1726443306596,1.64725367,2315.6,2315.3,3.2078]
[1726443306986,1.64725367,2315.7,2315.3,3.2078]
[1726443307300,4.85505367,2315.6,2314.9,0.43191]
[1726443307485,0.63377633,2315.5,2315.0,0.4319]
[1726443307792,1.64725367,2315.7,2314.9,0.43191]
[1726443307993,0.63380609,2315.6,2314.9,0.43191]
[1726443308189,1.64725367,2315.7,2314.8,8.0716529]
[1726443308392,4.85505367,2315.9,2315.4,0.43182]
[1726443308597,4.85505367,2315.9,2314.9,4.3192]
[1726443308598,1.64725367,2316.1,2315.7,0.43176]
[1726443308784,3.2078,2316.2,2315.7,0.43175]
[1726443308992,1.64725367,2316.4,2315.6,3.2078]
[1726443309191,1.64725367,2316.5,2315.6,3.2078]
[1726443309388,1.64725367,2316.5,2315.9,0.43171]
[1726443309594,0.63413926,2316.4,2315.8,0.43174]
[1726443309796,1.64725367,2316.5,2315.9,0.43172]
[1726443310102,0.63411613,2316.4,2315.9,0.43172]
[1726443310298,1.64725367,2316.5,2315.7,4.88449847]
[1726443310611,0.63412435,2316.4,2315.8,0.43175]
[1726443310794,1.64725367,2316.5,2315.8,0.43175]
[1726443310996,0.63412148,2316.4,2315.8,0.43175]
[1726443311301,1.64725367,2316.5,2315.8,0.43175]
[1726443311499,0.63411994,2316.4,2315.8,0.43175]
[1726443311694,1.64725367,2316.5,2315.8,0.43175]
[1726443312001,0.63412232,2316.4,2315.8,0.43175]
[1726443312301,1.64725367,2316.5,2315.8,0.43175]
[1726443312498,0.63411921,2316.4,2315.8,0.43175]
[1726443312694,1.64725367,2316.5,2315.8,0.43175]
[1726443312893,0.63411899,2316.4,2315.6,3.2078]
[1726443313100,0.63411899,2316.4,2314.7,5.5901]
[1726443313101,0.43174,2315.9,2314.7,5.5901]
[1726443313295,0.43174,2315.9,2315.0,0.43189]
[1726443313296,3.2078,2315.7,2315.0,0.43189]
[1726443313903,1.64725367,2315.9,2315.0,3.2078]
[1726443314100,1.64725367,2315.9,2315.2,0.43185]
[1726443314294,1.64725367,2315.9,2315.0,3.2078]
[1726443314295,4.85505367,2316.0,2315.0,3.2078]
[1726443314601,3.2078,2315.7,2315.0,3.63969]
[1726443314802,3.2078,2315.7,2315.1,0.43188]
[1726443315502,3.2078,2315.7,2315.0,3.63969]
[1726443315901,3.2078,2315.3,2314.7,3.2078]
[1726443316199,3.2078,2315.3,2314.8,0.43192]
[1726443316594,3.2078,2315.3,2315.0,0.43189]
[1726443316903,3.2078,2315.3,2314.9,0.4319]
[1726443317100,3.2078,2315.3,2314.6,2.4938]
[1726443317101,3.2078,2315.3,2314.8,0.43192]
[1726443317301,3.2078,2315.3,2314.6,2.4938]
[1726443317302,3.2078,2315.3,2314.9,0.43191]
[1726443317497,3.2078,2315.3,2314.8,0.43193]
[1726443317696,3.2078,2315.3,2314.7,3.63974]
[1726443318000,3.2078,2315.3,2314.8,0.43193]
[1726443318607,3.2078,2315.3,2314.7,3.2078]
[1726443318792,3.2078,2315.3,2314.9,0.4319]
[1726443319104,3.2078,2315.3,2314.8,0.43192]
[1726443319696,3.2078,2315.3,2314.9,0.43191]
[1726443321008,3.2078,2315.3,2314.2,0.21184134]
[1726443321009,7.3578,2315.0,2314.0,2.3256]
[1726443321211,7.3578,2315.0,2313.9,3.2078]
[1726443321212,3.2078,2314.7,2314.2,0.43204]
[1726443321507,0.63367431,2314.6,2314.1,5.29339728]
[1726443321811,0.63366209,2314.5,2314.0,0.43207]
[1726443322006,3.2078,2314.3,2313.8,2.73212168]
[1726443322200,2.1749007,2315.0,2314.0,3.2078]
[1726443322201,4.85505367,2314.9,2314.0,3.2078]
[1726443322395,4.85505367,2314.9,2313.8,2.73212168]
[1726443322396,2.7129334,2314.8,2313.8,2.73212168]
[1726443322601,0.63372973,2314.7,2314.2,0.43204]
[1726443322797,0.63372973,2314.6,2314.2,0.43204]
[1726443322998,5.28697367,2314.9,2314.0,3.2078]
[1726443323203,0.633682,2314.8,2314.5,0.43199]
[1726443323407,3.2078,2314.9,2314.1,8.02514528]
[1726443323710,2.07914367,2315.1,2314.6,0.43196]
[1726443323711,0.63376554,2314.8,2314.6,0.43196]
[1726443323910,5.79725367,2315.1,2314.6,0.43196]
[1726443324097,0.63376965,2315.0,2314.6,0.43196]
[1726443324300,3.84156965,2314.9,2314.2,1.0801]
[1726443324508,4.85505367,2315.2,2314.1,3.2078]
[1726443324698,0.63378291,2315.1,2314.6,0.43196]
[1726443324904,0.63378291,2315.0,2314.6,0.43196]
[1726443325099,0.63378291,2314.9,2314.7,0.43194]
[1726443325307,3.2078,2315.2,2314.6,0.43196]
[1726443325505,0.63380675,2315.1,2314.4,3.2078]
[1726443325700,0.63380675,2315.0,2314.4,3.2078]
[1726443325905,3.2078,2315.2,2314.7,0.43195]
[1726443326102,0.63381878,2315.1,2314.4,3.2078]
[1726443326303,3.63967,2315.2,2314.5,4.52581677]
[1726443326509,3.63967,2315.2,2314.6,0.43196]
[1726443326510,0.63383152,2315.1,2314.6,0.43196]
[1726443326703,3.2078,2314.9,2314.5,0.43198]
[1726443326904,3.2078,2314.9,2314.4,0.432]
[1726443327213,3.2078,2314.9,2314.1,3.2078]
[1726443327214,0.43191,2314.9,2314.1,3.2078]
[1726443327511,0.63374942,2314.8,2314.3,0.43202]
[1726443327711,3.2078,2315.0,2314.4,0.432]
[1726443327903,0.63372802,2314.9,2314.5,0.43199]
[1726443328103,3.2078,2315.0,2314.4,0.432]
[1726443328313,3.2078,2315.0,2314.1,1.08017]
[1726443328511,3.2078,2315.0,2314.7,0.43195]
[1726443329212,3.2078,2315.0,2314.1,4.28797]
[1726443329607,3.2078,2315.0,2314.7,0.43195]
[1726443330009,3.6397,2315.0,2314.4,0.43199]
[1726443330204,3.2078,2315.0,2314.1,3.2078]
[1726443330413,3.2078,2315.0,2314.5,0.43197]
[1726443330820,3.2078,2315.0,2314.7,0.43194]
[1726443331014,3.2078,2315.0,2314.2,4.7191759]
[1726443331015,3.2078,2315.0,2314.5,0.43198]
[1726443331217,3.6397,2315.0,2314.4,0.43199]
[1726443331516,3.2078,2314.6,2314.2,0.43204]
[1726443332222,3.2078,2314.6,2314.1,3.63986]
[1726443332517,4.15,2314.8,2314.1,3.2078]
[1726443332711,0.43196,2314.7,2314.1,3.63985]
[1726443332908,3.2078,2314.9,2314.1,3.2078]
[1726443333129,3.2078,2314.9,2314.4,0.43199]
[1726443333406,3.2078,2314.9,2314.2,5.00129466]
[1726443333613,4.15,2315.2,2314.7,0.43195]
[1726443333614,7.3578,2315.2,2314.7,0.43195]
[1726443334019,7.3578,2315.2,2314.6,0.43196]
[1726443334020,7.78967,2315.2,2314.6,0.43196]
[1726443334312,7.78967,2315.2,2314.9,0.43191]
[1726443334313,3.2078,2315.2,2314.9,0.43191]
[1726443334521,3.2078,2315.5,2314.7,3.2078]
[1726443334709,3.2078,2315.5,2315.0,0.43189]
[1726443335720,3.63961,2315.5,2314.9,0.4319]
[1726443336127,3.63961,2315.5,2314.9,0.43191]
[1726443336316,3.2078,2315.5,2315.0,0.43189]
[1726443336617,3.6396,2315.5,2314.9,0.43191]
[1726443336822,3.6396,2315.5,2314.5,1.07998]
[1726443336823,3.2078,2315.2,2314.5,0.43198]
[1726443337026,3.63961,2315.5,2314.9,0.4319]
[1726443337219,3.2078,2315.5,2314.9,0.4319]
[1726443337427,3.6396,2315.5,2314.9,0.43191]
[1726443337616,3.6396,2315.5,2314.6,3.2078]
[1726443337617,3.2078,2315.5,2314.6,3.2078]
[1726443337923,3.63967,2315.2,2314.6,3.63977]
[1726443338823,3.2078,2314.8,2313.9,3.2078]
[1726443339120,3.2078,2314.8,2314.3,0.43202]
[1726443339321,3.2078,2314.8,2314.2,0.43203]
[1726443339322,7.78974,2314.8,2314.2,0.43203]
[1726443339620,7.3578,2314.8,2314.3,0.43203]
[1726443340119,3.2078,2315.1,2314.4,4.82404049]
[1726443340418,3.2078,2315.1,2314.7,0.43195]
[1726443340635,2.07910367,2315.3,2314.7,0.43195]
[1726443340636,0.43184,2315.3,2314.7,0.43194]
[1726443340818,0.43184,2315.3,2314.4,8.03184049]
[1726443340819,9.43688367,2315.4,2314.8,0.43193]
[1726443341020,0.63423651,2315.3,2314.5,1.07998]
[1726443341222,3.2078,2315.4,2315.1,0.43187]
[1726443341422,1.64725367,2315.6,2314.8,8.12011012]
[1726443341423,1.64725367,2315.6,2314.8,3.2078]
[1726443341620,7.3578,2315.7,2315.3,0.43184]
[1726443341824,0.63442521,2315.6,2315.3,0.43184]
[1726443342027,0.63442521,2315.6,2315.4,0.43182]
[1726443342224,0.63442521,2315.6,2314.9,7.36291012]
[1726443342225,0.63442521,2315.6,2315.1,3.2078]
[1726443342411,0.63442521,2315.6,2315.5,0.4318]
[1726443342614,0.63442521,2315.6,2315.4,0.43182]
[1726443342919,0.63442521,2315.6,2315.2,9.17111541]
[1726443342920,1.64725367,2315.9,2315.2,9.17111541]
[1726443343114,9.00505367,2316.0,2315.4,0.43181]
[1726443343322,9.00505367,2316.0,2315.2,4.85191541]
[1726443343323,1.86327665,2315.9,2315.3,0.43183]
[1726443343818,1.64725367,2315.9,2315.2,4.85191541]
[1726443344123,7.3578,2316.0,2315.6,0.43178]
[1726443344124,5.79725367,2316.0,2315.6,0.43178]
[1726443344426,2.2950273,2315.9,2315.2,0.43185]
[1726443344622,2.07900367,2315.8,2315.2,0.43185]
[1726443344813,2.07900367,2315.8,2315.1,3.2078]
[1726443344814,7.99287755,2315.7,2315.1,3.63967]
[1726443345014,7.99287755,2315.7,2315.1,3.2078]
[1726443345015,1.64725367,2315.6,2315.1,3.2078]
[1726443345221,3.5145707,2315.5,2314.9,2.4506]
[1726443345422,2.28241506,2315.4,2314.9,2.4506]
[1726443345619,5.49021506,2315.4,2314.8,3.63972]
[1726443345821,4.85505367,2315.4,2314.8,3.63972]
[1726443346020,0.63517009,2315.3,2314.8,3.63972]
[1726443346222,0.63517009,2315.2,2314.8,3.63972]
[1726443346528,0.63516668,2315.3,2314.8,3.63972]
[1726443346726,0.63511112,2315.2,2314.8,3.63972]
[1726443347025,2.28242035,2315.3,2314.8,3.63972]
[1726443347227,0.63503421,2315.2,2314.8,3.63972]
[1726443347417,2.28242035,2315.3,2314.8,3.63972]
[1726443347418,0.63503421,2315.1,2314.8,3.63972]
[1726443347618,0.63503421,2315.2,2314.9,0.43191]
[1726443347817,1.64725367,2315.3,2314.9,0.43191]
[1726443348021,0.63498122,2315.2,2315.1,0.43188]
[1726443348422,0.63498122,2315.2,2315.1,4.75108]
[1726443348926,1.64725367,2315.5,2315.2,0.43186]
[1726443349124,0.63505364,2315.4,2315.3,0.43184]
[1726443349329,3.29851467,2315.4,2315.3,0.43184]
[1726443349529,3.29851467,2315.4,2315.3,4.75104]
[1726443349530,0.63505364,2315.4,2315.3,4.75104]
[1726443350119,2.1749007,2315.7,2315.3,4.75104]
[1726443350120,1.64725367,2315.7,2315.5,0.43179]
[1726443350320,0.63524299,2315.6,2315.5,0.43179]
[1726443350520,0.63524299,2315.6,2315.3,0.43183]
[1726443350721,0.63524299,2315.5,2314.8,3.2078]
[1726443351127,0.63524299,2315.5,2314.9,4.70954672]
[1726443351430,0.63524299,2315.5,2315.3,0.43183]
[1726443351627,1.64725367,2315.6,2314.9,5.78933672]
[1726443351826,0.63525048,2315.5,2315.4,0.43181]
[1726443352629,1.64725367,2315.7,2315.6,0.43178]
[1726443352829,2.28250249,2315.7,2315.3,3.2078]
[1726443353020,0.63524882,2315.6,2315.1,2.322]
[1726443353220,0.63524882,2315.5,2315.4,0.43181]
[1726443353623,0.63524882,2315.5,2315.4,4.75101]
[1726443354024,1.64725367,2315.8,2315.5,0.4318]
[1726443354223,0.63528407,2315.7,2315.5,0.43179]
[1726443354425,0.6352806,2315.6,2315.1,2.322]
[1726443354620,1.64725367,2315.8,2315.2,3.2078]
[1726443354825,0.63529034,2315.7,2315.5,0.4318]
[1726443355027,1.64725367,2315.8,2315.6,0.43178]
[1726443355336,0.63528922,2315.7,2315.6,0.43178]
[1726443355533,0.63528922,2315.7,2315.2,8.13259811]
[1726443355534,0.63528922,2315.7,2315.5,0.43179]
[1726443355736,1.64725367,2315.8,2315.2,12.45179811]
[1726443355927,9.5327007,2316.0,2315.8,0.43175]
[1726443355928,1.86326134,2315.9,2315.8,0.43175]
[1726443356243,2.28261454,2315.9,2315.7,0.43175]
[1726443356426,0.63536087,2315.8,2315.7,0.43175]
[1726443356625,1.64725367,2316.0,2315.6,4.5770841]
[1726443356626,1.64725367,2316.0,2315.8,0.43174]
[1726443356827,1.64725367,2316.1,2315.9,0.43173]
[1726443357037,0.63537144,2316.0,2315.8,0.43174]
[1726443357226,0.63536743,2315.9,2315.8,0.43174]
[1726443357426,1.64725367,2316.1,2315.8,0.43174]
[1726443357633,1.64725367,2316.1,2315.7,0.43176]
[1726443357634,0.63536714,2316.0,2315.7,0.43176]
[1726443357932,1.64725367,2316.1,2316.0,0.43171]
[1726443358136,0.63538801,2316.1,2315.6,4.5770841]
[1726443358433,1.64725367,2316.2,2315.6,4.5770841]
[1726443358635,2.28265284,2316.1,2315.9,0.43173]
[1726443358933,0.63539917,2316.0,2315.9,0.43173]
[1726443359638,1.64725367,2316.2,2315.9,0.43173]
[1726443359826,0.63533816,2316.1,2316.0,0.4317]
[1726443360032,0.63533816,2316.1,2315.7,3.2078]
[1726443360033,0.63533816,2316.1,2315.8,0.43173]
[1726443360238,1.64725367,2316.3,2315.9,0.43173]
[1726443360436,0.6353435,2316.2,2316.1,0.43169]
[1726443360740,0.6353435,2316.2,2315.7,3.2078]
[1726443360741,0.63535608,2316.2,2316.0,0.4317]
[1726443360935,1.64725367,2316.3,2316.0,0.4317]
[1726443361131,0.63536337,2316.2,2316.0,0.4317]
[1726443361339,0.63534679,2316.1,2315.7,3.2078]
[1726443361530,1.64725367,2316.3,2316.0,0.4317]
[1726443361732,0.63534991,2316.2,2316.0,0.4317]
[1726443361932,1.64725367,2316.4,2316.1,0.43168]
[1726443362135,0.63535694,2316.3,2316.2,0.43167]
[1726443362338,1.64725367,2316.6,2316.1,4.59281597]
[1726443362535,1.64725367,2316.7,2316.4,0.43163]
[1726443362737,0.63546208,2316.6,2316.4,0.43163]
[1726443362937,0.63546208,2316.5,2316.4,0.43163]
[1726443363145,1.64725367,2316.7,2316.5,0.43161]
[1726443363432,1.64725367,2316.7,2316.1,4.59281597]
[1726443363634,6.6996,2316.9,2316.1,4.59281597]
[1726443363635,1.64725367,2316.8,2316.1,4.59281597]
[1726443363839,0.63529064,2316.7,2316.4,0.43163]
[1726443364036,1.86318484,2316.8,2316.1,4.59281597]
[1726443364037,8.34685367,2316.9,2316.6,0.4316]
[1726443364237,0.63528932,2316.8,2316.6,0.4316]
[1726443364447,2.1749007,2317.0,2316.5,0.43161]
[1726443364448,1.64725367,2317.0,2316.5,0.43161]
[1726443364640,1.64725367,2317.0,2316.6,0.43159]
[1726443364947,1.64725367,2317.2,2316.6,5.00518308]
[1726443365240,2.1749007,2317.4,2316.9,0.43154]
[1726443365241,1.64725367,2317.3,2316.9,0.43154]
[1726443365438,1.64725367,2317.3,2316.6,3.2078]
[1726443365631,1.64725367,2317.4,2316.6,3.2078]
[1726443365832,0.63520398,2317.3,2316.7,4.49110864]
[1726443366036,1.64725367,2317.4,2317.0,0.4315]
[1726443366240,11.6715107,2317.6,2316.7,4.49110864]
[1726443366241,1.64725367,2317.5,2316.7,4.49110864]
[1726443366543,1.64725367,2317.5,2316.3,1.07914]
[1726443366544,4.15,2316.9,2316.5,0.43161]
[1726443366746,4.15,2316.9,2316.5,0.43162]
[1726443366937,4.15,2316.9,2316.6,0.4316]
[1726443367138,3.2078,2317.1,2316.3,3.2078]
[1726443367334,3.2078,2317.1,2316.6,0.43159]
[1726443367540,3.2078,2317.1,2316.3,3.2078]
[1726443367541,4.15,2317.2,2316.5,0.43161]
[1726443367741,4.15,2317.2,2316.6,0.43159]
[1726443368040,4.85505367,2317.4,2316.7,0.43158]
[1726443368041,9.00505367,2317.4,2316.7,0.43158]
[1726443368236,9.00505367,2317.4,2316.3,3.2078]
[1726443368436,0.43148,2317.3,2316.3,3.2078]
[1726443368645,0.43149,2317.2,2316.6,0.43159]
[1726443369034,9.00505367,2317.4,2316.3,4.28694]
[1726443369245,3.2078,2317.4,2317.0,0.43151]
[1726443369441,7.5215307,2317.6,2316.9,0.43153]
[1726443369442,6.99388367,2317.6,2316.9,0.43153]
[1726443369636,6.99388367,2317.6,2316.7,4.59917355]
[1726443369637,2.5004,2317.6,2317.1,4.59917355]
[1726443369842,2.93182,2317.6,2317.0,1.24814704]
[1726443370050,2.93182,2317.6,2317.0,0.43152]
[1726443370346,2.93182,2317.6,2317.1,5.0012494]
[1726443370347,2.5004,2317.6,2317.1,5.0012494]
[1726443370749,2.5004,2317.6,2317.0,0.43152]
[1726443371253,2.93182,2317.6,2317.0,0.43152]
[1726443371547,2.5004,2317.6,2316.9,3.2078]
[1726443371743,0.43145,2317.4,2316.9,3.2078]
[1726443371946,0.43144,2317.5,2317.0,0.43152]
[1726443372149,2.93182,2317.6,2317.0,0.43152]
[1726443372443,0.43143,2317.5,2317.0,0.43152]
[1726443372752,0.43143,2317.5,2316.6,3.2078]
[1726443372946,2.93182,2317.6,2317.0,0.43151]
[1726443373149,2.5004,2317.6,2317.1,0.4315]
[1726443373454,0.43144,2317.5,2316.7,4.92581895]
[1726443373743,2.93182,2317.6,2316.7,4.92581895]
[1726443374252,0.43143,2317.5,2317.0,0.43151]
[1726443374551,2.93182,2317.6,2317.0,0.43151]
[1726443375553,3.2078,2317.7,2317.3,0.43146]
[1726443375845,2.356,2318.0,2317.4,0.43144]
[1726443375846,2.78735,2318.0,2317.4,0.43144]
[1726443376043,2.78734,2318.0,2317.4,0.43144]
[1726443376241,2.356,2318.0,2317.2,3.2078]
[1726443376445,3.2078,2318.4,2317.6,3.2078]
[1726443376652,9.66815367,2318.9,2317.9,3.2078]
[1726443376850,8.0209,2318.9,2318.2,0.43129]
[1726443377041,8.0209,2318.9,2317.9,3.2078]
[1726443377042,8.0209,2318.9,2318.0,4.7438268]
[1726443377241,4.15,2318.8,2318.0,5.1751568]
[1726443377438,2.324,2318.9,2318.0,4.7438268]
[1726443377644,2.324,2318.9,2318.4,0.43125]
[1726443377838,2.324,2318.9,2318.3,0.43127]
[1726443378039,2.324,2318.9,2318.0,4.7438268]
[1726443378040,2.324,2318.9,2318.4,0.43126]
[1726443378247,2.324,2318.9,2318.4,4.8568801]
[1726443378450,3.2525307,2319.6,2318.7,3.2078]
[1726443378451,3.2078,2319.6,2318.7,3.2078]
[1726443378747,3.63885,2319.6,2318.8,1.27163421]
[1726443379159,3.63885,2319.6,2318.8,0.84045421]
[1726443379160,3.2078,2319.6,2318.8,0.84045421]
[1726443379341,0.43107,2319.5,2318.8,0.84045421]
[1726443379750,2.3974,2319.7,2318.9,0.43117]
[1726443379751,2.82843,2319.7,2318.9,0.43117]
[1726443379957,2.82843,2319.7,2318.8,0.84045421]
[1726443379958,2.3974,2319.7,2318.8,0.84045421]
[1726443380255,2.3974,2319.7,2319.0,4.65987855]
[1726443380449,2.3974,2319.7,2318.8,4.65987855]
[1726443380754,0.43106,2319.5,2318.7,3.639]
[1726443380954,3.2078,2319.6,2318.8,0.43118]
[1726443380955,3.63885,2319.6,2318.8,0.43118]
[1726443381150,0.43106,2319.5,2318.7,3.639]
[1726443381455,3.2078,2319.6,2318.7,3.639]
[1726443381456,3.2078,2319.6,2318.7,3.2078]
[1726443381654,4.15,2319.5,2318.7,3.2078]
[1726443381848,2.3974,2319.7,2318.6,0.43122]
[1726443381849,7.3578,2319.2,2318.6,0.43122]
[1726443382044,2.4392,2319.8,2318.5,2.447]
[1726443382045,3.2078,2319.8,2318.9,3.2078]
[1726443382248,3.2078,2319.8,2318.8,4.97282932]
[1726443382554,3.2078,2319.5,2318.9,0.43117]
[1726443383754,3.2078,2319.5,2319.0,0.43115]
[1726443384348,6.5369,2319.9,2318.8,3.2078]
[1726443384349,3.2078,2319.8,2318.8,3.2078]
[1726443384546,4.15,2319.2,2318.6,4.97282932]
[1726443384752,4.15,2319.2,2318.6,0.43122]
[1726443384753,2.3414,2319.1,2318.6,0.43122]
[1726443384951,0.43121,2318.7,2318.4,3.2078]
[1726443385462,0.4312,2318.8,2318.4,3.2078]
[1726443385660,0.43118,2318.9,2318.4,3.2078]
[1726443385852,4.8147,2319.0,2318.4,3.2078]
[1726443386053,0.4312,2318.8,2318.4,3.2078]
[1726443386358,5.24585,2319.0,2318.5,0.43123]
[1726443387252,5.24585,2319.0,2318.4,3.2078]
[1726443387253,4.8147,2319.0,2318.6,0.43121]
[1726443387453,2.5105,2319.0,2318.5,0.43124]
[1726443387950,2.5105,2319.0,2318.4,3.2078]
[1726443387951,7.3578,2319.4,2318.6,4.73170192]
[1726443388155,0.43113,2319.1,2318.6,5.16291192]
[1726443388350,0.43113,2319.1,2318.6,0.43121]
[1726443388655,0.43112,2319.2,2318.7,0.4312]
[1726443388957,0.43112,2319.2,2318.6,0.43121]
[1726443389360,2.80521,2319.3,2318.8,0.43118]
[1726443389555,2.3741,2319.3,2318.5,4.84014593]
[1726443389760,2.3741,2319.3,2318.7,0.4312]
[1726443389963,2.80521,2319.3,2318.5,4.84014593]
[1726443390263,2.80521,2319.3,2318.7,0.43119]
[1726443390768,2.3741,2319.3,2318.8,0.43119]
[1726443390959,2.3741,2319.3,2318.5,4.84014593]
[1726443390960,2.3741,2319.3,2319.0,0.43114]
[1726443391762,2.3741,2319.3,2318.5,4.84014593]
[1726443391763,3.2078,2319.4,2318.7,3.2078]
[1726443391964,3.2078,2319.4,2319.0,0.43114]
[1726443392161,3.2078,2319.4,2319.1,0.43113]
[1726443392359,3.63882,2319.7,2319.1,0.43112]
[1726443392666,0.43105,2319.6,2319.0,0.43114]
[1726443392859,0.43105,2319.6,2319.1,0.43113]
[1726443393061,3.2078,2319.7,2319.1,0.43113]
[1726443393062,3.63883,2319.7,2319.1,0.43113]
[1726443393275,0.43104,2319.6,2319.1,0.43113]
[1726443393573,0.43111,2319.3,2318.8,5.39328559]
[1726443393779,3.63889,2319.4,2318.8,5.39328559]
[1726443394476,0.4311,2319.3,2318.8,5.39328559]
[1726443394677,0.43112,2319.2,2318.8,4.96210559]
[1726443394870,0.43112,2319.2,2318.7,0.43119]
[1726443395174,7.3578,2319.4,2318.8,0.43118]
[1726443395175,0.43111,2319.3,2318.8,0.43118]
[1726443395377,3.2078,2319.4,2318.4,1.07816]
[1726443395564,3.2078,2319.4,2318.8,0.43118]
[1726443395765,0.4311,2319.3,2318.8,0.43118]
[1726443395975,0.4311,2319.3,2318.9,0.43117]
[1726443396163,3.63889,2319.4,2318.9,0.43117]
[1726443396974,0.43107,2319.5,2318.7,3.2078]
[1726443397275,0.43105,2319.6,2319.1,0.43112]
[1726443397478,0.43106,2319.5,2319.0,0.43114]
[1726443397774,0.43109,2319.4,2318.8,4.60162151]
[1726443398075,0.43109,2319.4,2318.9,0.43116]
[1726443398673,8.43536,2319.7,2318.6,3.2078]
[1726443398869,3.2078,2319.7,2318.8,4.15]
[1726443399174,3.2078,2320.1,2319.4,0.43106]
[1726443399375,0.43098,2320.0,2319.5,0.43105]
[1726443399770,3.63876,2320.1,2319.6,0.43103]
[1726443399971,3.2078,2320.1,2319.3,1.07774]
[1726443400174,0.65810387,2320.4,2319.6,4.67137666]
[1726443400374,5.52,2320.5,2320.1,0.43094]
[1726443400775,5.52,2320.5,2320.0,0.43096]
[1726443400974,5.52,2320.5,2319.6,7.18229646]
[1726443401172,5.52,2320.5,2320.1,0.43094]
[1726443401867,2.3122,2320.5,2319.8,3.2078]
[1726443402071,2.3122,2320.5,2320.1,0.43093]
[1726443402472,2.3122,2320.5,2320.0,0.43096]
[1726443402878,2.3122,2320.5,2320.1,4.81770454]
[1726443403277,6.4828,2320.8,2320.0,4.56048692]
[1726443403483,0.43087,2320.6,2320.1,0.43094]
[1726443403680,3.2078,2320.7,2319.9,2.3329]
[1726443403980,3.2078,2320.7,2320.3,0.43091]
[1726443404172,3.2078,2320.7,2320.0,4.56048692]
[1726443404379,3.2078,2320.7,2320.3,0.43091]
[1726443404876,3.2078,2320.7,2320.3,0.4309]
[1726443405084,0.43084,2320.7,2320.4,4.56523265]
[1726443405471,3.2078,2320.6,2320.1,0.43094]
[1726443405776,3.2078,2320.6,2320.0,4.56523265]
[1726443405777,3.63866,2320.6,2320.0,4.56523265]
[1726443406179,3.2078,2320.6,2319.9,2.3329]
[1726443406376,0.4309,2320.4,2319.4,5.6194]
[1726443406576,3.2078,2320.6,2319.4,5.6194]
[1726443406782,1.07709,2320.7,2319.4,5.6194]
[1726443406783,0.43094,2320.2,2319.7,4.7390374]
[1726443407081,0.43094,2320.2,2319.5,4.71853657]
[1726443407281,0.43094,2320.2,2319.8,0.43099]
[1726443407789,3.2078,2320.3,2319.9,0.43098]
[1726443408079,3.63872,2320.3,2319.9,0.43098]
[1726443409483,3.63872,2320.3,2319.5,4.84406312]
[1726443409484,0.43094,2320.2,2319.8,0.431]
[1726443409674,0.43095,2320.1,2319.5,4.84406312]
[1726443409876,0.43097,2320.0,2319.6,0.43103]
[1726443410075,7.3578,2319.9,2318.7,1.07798]
[1726443410274,0.43103,2319.7,2319.3,0.43108]
[1726443410682,0.43101,2319.8,2319.4,0.43107]
[1726443410881,3.2078,2319.5,2319.4,5.21753072]
[1726443411082,3.2078,2319.5,2318.9,5.5919]
[1726443411286,1.07737,2320.1,2319.4,0.43108]
[1726443411287,0.43101,2319.8,2319.4,0.43108]
[1726443411489,7.3578,2319.6,2319.0,4.63879683]
[1726443411782,7.3578,2319.6,2318.9,0.43116]
[1726443411973,0.43111,2319.2,2318.9,0.43116]
[1726443412174,0.43109,2319.4,2319.0,0.43114]
[1726443412376,2.5119,2319.5,2319.1,0.43113]
[1726443412681,2.94297,2319.5,2319.1,0.43113]
[1726443412882,2.5119,2319.5,2318.9,4.89968371]
[1726443413090,2.5119,2319.5,2319.3,0.43109]